Cogmind - Beta 12 @@@ ROGUE MODE // 2023.04.02 @ 12:55:33 Player: ZLD1 Result: Destroyed by D-53 Grenadier with Mini Grenade Launcher Performance ------------- Evolutions (1) 500 Regions Visited (4) 800 Robots Destroyed (19) 95 Value Destroyed (601) 601 Prototype IDs (1) 20 Alien Tech Used (0) 0 Bonus (0) 0 TOTAL SCORE: 2016 Bonus ------- None Cogmind --------- Core Integrity 0/400 Matter 300/300 Energy 100/100 System Corruption 0% Temperature Cool (0) Movement Core (200) Ox3 Location -9/Mines Parts ------- > --- POWER (1) -------- (None) > --- PROPULSION (2) --- (None) > --- UTILITY (3) ------ Medium Storage Unit > --- WEAPON (3) ------- (None) > --- INVENTORY (10) --- Ion Engine Deuterium Engine Armored Treads Advanced Treads Cryofiber Web Medium Storage Unit Improved Terrain Scanner Seismic Detector ECM Suite Datajack Peak State ------------ > --- POWER ------------ Light Nuclear Core > --- PROPULSION ------- Aluminum Leg Carbon-fiber Leg > --- UTILITY ---------- Medium Storage Unit Experimental Sensor Array High-powered Tractor Beam > --- WEAPON ----------- Small Laser Beam Rifle Rocket Launcher > --- INVENTORY -------- Ion Engine Deuterium Engine Armored Treads Advanced Treads Cryofiber Web Medium Storage Unit Improved Terrain Scanner Seismic Detector ECM Suite Datajack [Rating: 26] Favorites ----------- Power Ion Engine Engine Ion Engine Power Core Light Nuclear Core Propulsion Aluminum Leg Leg Aluminum Leg Utility Medium Storage Unit Device Seismic Detector Storage Medium Storage Unit Weapon Particle Gun Energy Gun Particle Gun Ballistic Gun Assault Rifle Launcher Rocket Launcher Special Weapon Plasma Flamer Special Melee Weapon Datajack Build | -11 -10 -10 -9 -9 ------- Run | Jun Mat Min Mat Min Slots Evolved 2 | . . . 2 . Power . | . . . . . Propulsion . | . . . . . Utility 1 | . . . 1 . Weapon 1 | . . . 1 . Parts Attached 36 | 8 5 11 5 7 Power 4 | 2 . 1 . 1 Engine 3 | 2 . 1 . . Core 1 | . . . . 1 Reactor . | . . . . . Propulsion 13 | 2 3 4 3 1 Treads . | . . . . . Leg 13 | 2 3 4 3 1 Wheel . | . . . . . Hover . | . . . . . Flight . | . . . . . Utility 9 | 2 1 2 1 3 Device 7 | 1 . 2 1 3 Storage 2 | 1 1 . . . Processor . | . . . . . Hackware . | . . . . . Protection . | . . . . . Artifact . | . . . . . Weapon 10 | 2 1 4 1 2 Energy Gun 4 | . 1 1 1 1 Energy Cannon . | . . . . . Ballistic Gun 2 | 2 . . . . Ballistic Cannon . | . . . . . Launcher 1 | . . . . 1 Special Weapon 2 | . . 2 . . Impact Weapon . | . . . . . Slashing Weapon . | . . . . . Piercing Weapon . | . . . . . Special Melee Weapon 1 | . . 1 . . Unidentified Prototypes 1 | . . 1 . . Parts Lost 11 | . . . . 11 Power 1 | . . . . 1 Propulsion 2 | . . . . 2 Utility 3 | . . . . 3 Weapon 5 | . . . . 5 Highest Loss Streak 8 | . . . . 8 To Critical Strikes . | . . . . . Average Slot Usage (%) 95 | . 99 99 85 85 Engine 11 | . 14 14 11 4 Core 1 | . . . . 6 Leg 25 | . 27 27 21 20 Device 15 | . 14 14 17 19 Storage 13 | . 14 14 11 11 Energy Gun 13 | . 4 16 13 15 Ballistic Gun 4 | . 23 . . . Launcher 1 | . . . . 6 Special Weapon 6 | . . 10 11 . Naked Turns . | . . . . . Heaviest Build 26 | 14 19 22 26 25 Greatest Support 30 | 20 20 20 30 30 Greatest Overweight (x) 4 | . 4 1 2 3 Average Overweight (x) . | . . . . . Largest Inventory Capacity 10 | 8 10 10 10 10 Average Capacity 9 | 7 8 10 10 10 Most Carried 10 | 5 8 10 10 10 Average Carried 8 | 2 4 9 9 9 Final Capacity 10 | 8 10 10 10 10 Final Carried 10 | 2 7 10 10 10 Class Distribution -------------------- 75% | Scavenger-Mutant 24% | Mutant Dominant Class ---------------- Mutant | -10/Materials Scavenger-Mutant | -10/Mines Scavenger-Mutant | -9/Materials Mutant | -9/Mines Resources | -11 -10 -10 -9 -9 ----------- Run | Jun Mat Min Mat Min Matter Collected 767 | 169 43 197 156 202 Remotely 126 | . . . . 126 Salvage Created 620 | 75 169 133 53 190 Parts 43 | 11 9 12 2 9 Haulers Intercepted . | . . . . . Recyclers Shooed 4 | . 3 1 . . Parts Field Recycled . | . . . . . Retrieved Matter . | . . . . . Parts Self-Destructed . | . . . . . Prevented . | . . . . . Kills | -11 -10 -10 -9 -9 ------- Run | Jun Mat Min Mat Min Combat Hostiles Destroyed 15 | . 4 3 2 6 Guns 10 | . 4 3 1 2 Cannons 1 | . . . 1 . AOE 3 | . . . . 3 Classes Destroyed 3 | 1 1 . 1 . Tunneler 4 | 4 . . . . Grunt 14 | . 4 3 1 6 Sentry 1 | . . . 1 . Best Kill Streak 3 | 2 3 2 2 3 Combat Bots Only 3 | . 3 2 2 3 Max Kills in Single Turn 2 | 1 2 1 1 2 Gunslinging 1 | . 1 . . . Exploded 2 | . . . . 2 Melee . | . . . . . Uniques/NPCs Destroyed . | . . . . . Combat | -11 -10 -10 -9 -9 -------- Run | Jun Mat Min Mat Min Damage Taken 2124 | . 522 196 139 1267 Core 600 | . 131 61 15 393 Absorbed by Shields . | . . . . . Core Remaining (%) 61 | 100 . 23 . . Volleys Fired 70 | 12 24 9 6 19 Largest 3 | 2 2 2 2 3 Hottest 221 | 40 60 105 165 221 Shots Fired 124 | 24 48 18 11 23 Gun 114 | 24 48 18 6 18 Cannon . | . . . . . Launcher 3 | . . . . 3 Special 7 | . . . 5 2 Kinetic 72 | 24 44 4 . . Thermal 49 | . 4 14 11 20 Explosive 3 | . . . . 3 Electromagnetic . | . . . . . Robot Hit Streak 10 | 5 7 4 9 10 Robot Miss Streak 3 | 2 2 2 2 3 Penetration Max . | . . . . . Secondary Targets 2 | . 2 . . . Max Gunslinging Chain 1 | . 1 . . . Shots Hit Robots 86 | 15 34 14 9 14 Core Hits 46 | 7 14 7 4 14 Critical Kills . | . . . . . Critical Parts Destroyed . | . . . . . Critical Strikes 3 | . . . 1 2 Burn 3 | . . . 1 2 Melee Attacks 1 | . . 1 . . Impact . | . . . . . Slashing . | . . . . . Piercing . | . . . . . Sneak Attacks 1 | . . 1 . . Combat Hostiles . | . . . . . Follow-up Attacks . | . . . . . Damage Inflicted 1225 | 168 342 202 119 394 Guns 949 | 168 341 164 70 206 Cannons . | . . . . . Explosions 174 | . . . . 174 Melee . | . . . . . Ramming 39 | . 1 38 . . Kinetic 530 | 168 321 41 . . Thermal 482 | . 20 123 119 220 Explosive 174 | . . . . 174 Electromagnetic . | . . . . . Impact . | . . . . . Slashing . | . . . . . Piercing . | . . . . . Highest Corruption . | . . . . . Average Corruption . | . . . . . Corruption Purged . | . . . . . Corruption Blocked . | . . . . . Overload Shots . | . . . . . Overflow Damage . | . . . . . Projectiles . | . . . . . Explosions . | . . . . . Melee . | . . . . . Knockbacks . | . . . . . Impact . | . . . . . Kinetic . | . . . . . Secondary . | . . . . . Self-Inflicted Damage 38 | . . . . 38 Shots 2 | . . . . 2 Rammed . | . . . . . Targets Rammed 6 | . 1 5 . . Kicked 6 | . 1 5 . . Crushed . | . . . . . Highest Temperature 554 | . 30 249 422 554 Average Temperature 178 | . 14 100 214 321 Received Heat Transfer 714 | . 288 81 66 279 Effects 10 | . . . 3 7 Shutdowns 1 | . . . . 1 Energy Bleed 2 | . . . 1 1 Interference 3 | . . . 2 1 Matter Decay 2 | . . . . 2 Short Circuit 2 | . . . . 2 Siege Activations . | . . . . . Robots Corrupted . | . . . . . Combat Hostiles . | . . . . . Parts Fried . | . . . . . Impact Corruptions . | . . . . . Robots Melted 1 | . . . . 1 Combat Hostiles 1 | . . . . 1 Parts Melted 5 | . . . 2 3 Heat Transferred 1747 | . 50 286 665 746 Parts Sabotaged . | . . . . . Parts Stolen . | . . . . . Parts Stripped . | . . . . . Power Chain Reactions . | . . . . . Missiles Intercepted . | . . . . . Alert | -11 -10 -10 -9 -9 ------- Run | Jun Mat Min Mat Min Peak Influence 178 | 20 133 80 95 178 Initial 36 | . 13 . . 36 Average 49 | 7 65 23 46 118 Maximum Alert Level . | . . . . . Low Security (%) 100 | 100 100 100 100 100 Level 1 . | . . . . . Level 2 . | . . . . . Level 3 . | . . . . . Level 4 . | . . . . . Level 5 . | . . . . . High Security . | . . . . . Max Security . | . . . . . Squads Dispatched 4 | . 2 1 1 . Investigation 2 | . 1 1 . . Extermination . | . . . . . Reinforcement 2 | . 1 . 1 . Assault . | . . . . . Garrison . | . . . . . Intercept . | . . . . . Searches Triggered . | . . . . . Construction Impeded . | . . . . . Haulers Reinforced . | . . . . . Active Scanning Responses . | . . . . . Cargo Convoy Interrupts . | . . . . . Stealth | -11 -10 -10 -9 -9 --------- Run | Jun Mat Min Mat Min Distress Signals . | . . . . . Communications Jammed . | . . . . . Distress Signals . | . . . . . Times Spotted 24 | . 8 3 5 8 Peak Tracking Total 4 | . 4 2 4 3 Tactical Retreats . | . . . . . Traps | -11 -10 -10 -9 -9 ------- Run | Jun Mat Min Mat Min Traps Triggered 1 | . . 1 . . Indirectly . | . . . . . Trap Hack Attempts 6 | . . 6 . . Triggered . | . . . . . Disarmed . | . . . . . Reprogrammed 1 | . . 1 . . Reused . | . . . . . Traps Extracted . | . . . . . Installed . | . . . . . Triggered . | . . . . . Machines | -11 -10 -10 -9 -9 ---------- Run | Jun Mat Min Mat Min Machines Disabled . | . . . . . Max in Single Turn . | . . . . . Machines Repaired . | . . . . . Machines Sabotaged . | . . . . . Overloaded Fab Kills . | . . . . . Hacking | -11 -10 -10 -9 -9 --------- Run | Jun Mat Min Mat Min Machines Accessed 4 | . 2 2 . . Terminals 3 | . 2 1 . . Fabricators . | . . . . . Repair Stations . | . . . . . Recycling Units . | . . . . . Scanalyzers . | . . . . . Garrison Access . | . . . . . Total Hacks 8 | . 4 4 . . Successful 5 | . 1 4 . . Failed 3 | . 3 . . . Catastrophic 2 | . 2 . . . Database Lockouts . | . . . . . Manual . | . . . . . Terminals 7 | . 4 3 . . Fabricators . | . . . . . Repair Stations . | . . . . . Recycling Units . | . . . . . Scanalyzers . | . . . . . Garrison Access . | . . . . . Terminal Hacks 5 | . 1 4 . . Record 3 | . . 3 . . Open Door 1 | . . 1 . . Zone Layout 1 | . 1 . . . Fabricator Hacks . | . . . . . Repair Station Hacks . | . . . . . Recycling Unit Hacks . | . . . . . Scanalyzer . | . . . . . Garrison Access Hacks . | . . . . . Unauthorized Hacks . | . . . . . Terminals . | . . . . . Fabricators . | . . . . . Repair Stations . | . . . . . Recycling Units . | . . . . . Scanalyzers . | . . . . . Garrison Access . | . . . . . Data Cores Recovered . | . . . . . Used . | . . . . . Hacking Detections 3 | . 2 1 . . Full Trace Events 2 | . 1 1 . . Feedback Events . | . . . . . Feedback Blocked . | . . . . . Robot Schematics Acquired . | . . . . . Robots Built . | . . . . . Authchips . | . . . . . Time . | . . . . . Total Robot Build Rating . | . . . . . Part Schematics Acquired . | . . . . . Parts Built . | . . . . . Authchips . | . . . . . Time . | . . . . . Total Part Build Rating . | . . . . . Parts Repaired . | . . . . . Time . | . . . . . Parts Recycled . | . . . . . Recycled Matter . | . . . . . Retrieved Matter . | . . . . . Retrieved Components . | . . . . . Parts Scanalyzed . | . . . . . Part Schematics Acquired . | . . . . . Parts Damaged . | . . . . . Bothacking | -11 -10 -10 -9 -9 ------------ Run | Jun Mat Min Mat Min Used RIF Installer . | . . . . . Robots Hacked 1 | . . 1 . . Non-combat 1 | . . 1 . . Combat . | . . . . . Robot Hacks Applied 1 | . . 1 . . no_distress 1 | . . 1 . . Relay Couplers Released . | . . . . . Fabnet Peak Effective % . | . . . . . Robots Rewired . | . . . . . Allies Hacked . | . . . . . Hacks Repelled . | . . . . . Allies | -11 -10 -10 -9 -9 -------- Run | Jun Mat Min Mat Min Total Allies 1 | . . 1 . . Largest Group 1 | . . 1 . . Highest-Rated Group 31 | . . 31 . . Highest-Rated Ally 31 | . . 31 . . Total Orders . | . . . . . Ally Attacks . | . . . . . Total Damage . | . . . . . Kills . | . . . . . Allies Corrupted . | . . . . . Allies Melted . | . . . . . Intel | -11 -10 -10 -9 -9 ------- Run | Jun Mat Min Mat Min Robot Analysis Total . | . . . . . Derelict Logs Recovered 3 | . . 2 . 1 Drone Launches . | . . . . . Drone Recoveries . | . . . . . Exploration | -11 -10 -10 -9 -9 ------------- Run | Jun Mat Min Mat Min Turns Passed 2379 | 115 408 1253 142 461 Spaces Moved 1394 | 61 234 693 77 329 Core 21 | 12 4 . . 5 Treads . | . . . . . Legs 1373 | 49 230 693 77 324 Wheels . | . . . . . Hover . | . . . . . Flight . | . . . . . Fastest Speed 50 | 50 120 120 120 120 Average Speed 146 | 106 122 169 142 123 Slowest Speed 260 | 120 250 190 260 260 Overloaded Moves . | . . . . . Propulsion Burnouts . | . . . . . Robots Hopped . | . . . . . Cave-ins Triggered . | . . . . . Exploration Rate (%) 42 | 3 35 100 15 60 Regions Visited 4 Branch Regions 2 Pre-discovered Areas 1 | . . 1 . . Known Exits Taken . | . . . . . Unknown Exits Taken 4 | 1 1 1 1 . Scrap Searched 3 | . . 2 . 1 Spaces Dug . | . . . . . Terrain Destroyed 36 | . . . . 36 Melee . | . . . . . Projectile . | . . . . . AOE 36 | . . . . 36 Terrain Rammed . | . . . . . Walls Destroyed . | . . . . . Machines Disabled . | . . . . . Actions | -11 -10 -10 -9 -9 --------- Run | Jun Mat Min Mat Min Total 1609 | 88 314 750 96 361 Wait 46 | . 36 6 4 . Move 1390 | 60 233 692 76 329 Hop . | . . . . . Pick Up 34 | 8 10 11 2 3 Fast Attach 7 | 1 . 1 2 3 Attach 19 | 6 4 4 2 3 Detach . | . . . . . Swap 10 | 1 1 6 1 1 Drop 20 | . 5 9 3 3 Fire 70 | 12 24 9 6 19 Melee 1 | . . 1 . . Ram . | . . . . . Kick 6 | . 1 5 . . Crush . | . . . . . Escape Stasis . | . . . . . Rewire . | . . . . . Trap 6 | . . 6 . . Miscellaneous . | . . . . . Route ------- -11/Junkyard -10/Materials -10/Mines (discovered 2 exits: [*Mat x2]) -9/Materials -9/Mines (discovered 1 exit: [*Mat]) History --------- Turn | Location | Event 11 | -11/Junkyard | Discovered new exit (range 16) 116 | -11/Junkyard | Entered Materials 315 | -10/Materials | Build established: Mutant 421 | -10/Materials | Core integrity fell below 50% 459 | -10/Materials | Discovered new exit (range 16) 524 | -10/Materials | Entered Mines 597 | -10/Mines | Learned Materials trap positions 627 | -10/Mines | Found a damaged Exp. Sensor Array with a note attached 629 | -10/Mines | Found Prototype Device 636 | -10/Mines | Identified Exp. Sensor Array 659 | -10/Mines | Build established: Scavenger-Mutant 720 | -10/Mines | Discovered new exit (range 13) 723 | -10/Mines | Learned location of Storage (-7) 756 | -10/Mines | A weapon hastily lodged in a ceiling crevice suddenly fell to the ground 862 | -10/Mines | Received a Mining Laser from a helpful Derelict 1284 | -10/Mines | Met a Derelict who couldn't figure out how to use a Trap Extractor 1391 | -10/Mines | Discovered new exit (range 15) 1777 | -10/Mines | Entered Materials 1777 | -9/Materials | Evolved 2 slots: Utility x1, Weapon x1 1778 | -9/Materials | Loaded intel: 21 trap records 1913 | -9/Materials | Discovered new exit (range 6) 1919 | -9/Materials | Entered Mines 1964 | -9/Mines | Lost 3 parts (1u2w) 2002 | -9/Mines | Assembled infested the area 2007 | -9/Mines | Assisted by a Guerilla fighting off Assembled 2050 | -9/Mines | Received a Rocket Launcher from a helpful Derelict 2074 | -9/Mines | Learned Materials garrison access intel 2096 | -9/Mines | Discovered new exit (range 5) 2368 | -9/Mines | Core integrity fell below 50% 2375 | -9/Mines | Core integrity fell below 20% 2380 | -9/Mines | Destroyed by D-53 Grenadier with Mini Grenade Launcher Last Messages --------------- 02184_ Acquired 3 matter. 02184_ R-06 Scavenger collects Flight Unit. 02306_ Searching scrap... 02306_ Found ECM Suite. 02306_ Found 17 Matter. 02309_ Acquired ECM Suite. 02354_ R-06 Scavenger destroyed. 02355_ Acquired 11 matter. 02357_ The unstable cave ceiling collapses. 02358_ Carbon-fiber Leg destroyed. 02358_ Beam Rifle destroyed. 02360_ Lgt. Nuclear Core destroyed. 02360_ Rocket Launcher destroyed. 02360_ T-07 Excavator destroyed. 02362_ Hpw. Tractor Beam destroyed. 02365_ Exp. Sensor Array destroyed. 02367_ Sml. Laser destroyed. 02369_ The unstable cave ceiling collapses. 02369_ Aluminum Leg destroyed. 02370_ The unstable cave ceiling collapses. Map ----- +----------------------------------------------------+ | ??????????????????# ???????????????????????? | | ??????????????????? #???????????????????????? | | ???????????????????? ##?????????????####?????? | | ????????????????????# ###??????????# ##????? | | ????????????????????# ###????#### #????? | | ????????????????????# ###?## #????? | | ????????????????????# ### ?????? | | ??????????????????### ??????? | | ?????????????????## ???????? | | ????????????????## #????????? | | ?????????????#### ## #????????? | | ????????????## #???# ##???????? | | ????????????# ! #???## ##??????? | | ????????????##### ##???# ##?????? | | #?????????????# # #???# #?????? | | ?????????????## # d ###?## #?????? | | ?????????????# d ##?## ##?????? | | ????????????## #??# #######??????? | | % ??????????????# # #??# #????????????? | | == ??????????????## #??# #????????????? | | %%#???????????????## #??# #????????????? | | %*##???????????????## #??# #????????????? | | ##???????????????# #??# #????????????? | | ##??????????????# #??# ####?######### | | ##?????????????# #??# #?# # | | ##????????###### @ #??# ### # | | ######??## ### ##??## # *# | | #### ## #????# ###### """ # | | ## ### ##????# #????# """ # | | #### #?????# #????# """ # | | #####??### #?????# #????# # | | #????????## ### #### ##?????# #????######### | | ??????????## #?#####??####??????# #????????????? | | ???????????## #??????????????????# #?????#####??? | | ????????########??#############???# #??#### ##?? | | ???????## ##????# #???# #### #?? | | ???????# #????# #???# ##? | | ???????? ##???# ####### #???##### ## | | ####????# ##??# #?????# #???????## # | | # ###### #??# #?????# #????????# ## | | #??# #?????# #????????# ### | | #??# #?????# #????????# #?## | | ###### #### #??#### ########?# #??# | | ##????# #??# < # #?# #??## | | #?????## ### #??# # ### #???##### | | #??????## #?# #??# """ # * #???????? | | # ##???????# ### #??# """ # ####???????? | | ####????????# #??# """ *%[ ##??????????? | | ????????????# #??# #???????????? | | ????????????## ######??######### ##???????????? | +----------------------------------------------------+ Best States ------------- Heat Dissipation 28 Energy Generation 14 Energy Capacity 250 Matter Stores 300 Matter Capacity 300 Sight Range 16 Robot Scan Range 20 Terrain Scan Density 10 Base Temperature (-) 100 Evasion (%) 55 Item Schematics ----------------- None Robot Schematics ------------------ None Fabricated ------------ Nothing Alien Tech Used ----------------- None Achievements -------------- Hehehe Challenges ------------ None Game ------ Seed StorageStormNukerbomber Manual? 0 Play Time 00:20:30 Cumulative 18.4 hours Start 2023.04.02 @ 12:37:21 End 2023.04.02 @ 12:55:33 Sessions 1 Manual Loads 0 Difficulty Rogue Special Mode None Game No. 44 Rogue 44 Adventurer 0 Explorer 0 Win Type - Total 0 Types 0/0/0/0/0/0/0/0/0 Lore% 22 Gallery% 26 Achievement% 18 Wizard Run 0 Options --------- ASCII 0 Keyboard 0 Movement Mouse Keybinds 0 Fullscreen 1 Font 24/Smallcaps Map View 64x52 Tactical HUD 1 Map Filters NONE Filters NONE Steam 1 RUN: 5489118a-8f07-4ff8-975a-68350d386f32